Workbook

Sheet Dashboards
D10: SERVICE STATS
B11: =VLOOKUP(D11,Data,Ref_player1+1,FALSE) -> 10066 | C11: =REPT("|",B11*100/SUM(B11,F11)) -> ||||||||||||||||||||||||||||||||||||||||||||||||||||||||||||||||||||||||||||||||||||||| | D11: Aces | E11: =REPT("|",F11*100/SUM(B11,F11)) -> |||||||||||| | F11: =VLOOKUP(D11,Data,Ref_Player2+1,FALSE) -> 1432
B12: =VLOOKUP(D12,Data,Ref_player1+1,FALSE) -> 2475 | C12: =REPT("|",B12*100/SUM(B12,F12)) -> |||||||||||||||||||||||||||||||||||||||||||||||||||||||||||||||||||||||||||||| | D12: Double Faults | E12: =REPT("|",F12*100/SUM(B12,F12)) -> ||||||||||||||||||||| | F12: =VLOOKUP(D12,Data,Ref_Player2+1,FALSE) -> 691
B13: =VLOOKUP(D13,Data,Ref_player1+1,FALSE) -> 0.62 | C13: ||||||||||||||||||||||||||||||||||||||||||||||||||| | D13: 1st Serve | E13: |||||||||||||||||||||||||||||||||||||||||||||||| | F13: =VLOOKUP(D13,Data,Ref_Player2+1,FALSE) -> 0.59
B14: =VLOOKUP(D14,Data,Ref_player1+1,FALSE) -> 0.77 | C14: |||||||||||||||||||||||||||||||||||||||||||||||||| | D14: 1st Serve Points Won | E14: ||||||||||||||||||||||||||||||||||||||||||||||||| | F14: =VLOOKUP(D14,Data,Ref_Player2+1,FALSE) -> 0.74
B15: =VLOOKUP(D15,Data,Ref_player1+1,FALSE) -> 0.57 | C15: ||||||||||||||||||||||||||||||||||||||||||||||||||| | D15: 2nd Serve Points Won | E15: |||||||||||||||||||||||||||||||||||||||||||||||| | F15: =VLOOKUP(D15,Data,Ref_Player2+1,FALSE) -> 0.54
B16: =VLOOKUP(D16,Data,Ref_player1+1,FALSE) -> 5781 | C16: ||||||||||||||||||||||||||||||||||||||||||||||||||||||||||||||||||||||||||||||| | D16: Break Points Faced | E16: |||||||||||||||||||| | F16: =VLOOKUP(D16,Data,Ref_Player2+1,FALSE) -> 1465
B17: =VLOOKUP(D17,Data,Ref_player1+1,FALSE) -> 0.67 | C17: ||||||||||||||||||||||||||||||||||||||||||||||||||| | D17: Break Points Saved | E17: |||||||||||||||||||||||||||||||||||||||||||||||| | F17: =VLOOKUP(D17,Data,Ref_Player2+1,FALSE) -> 0.62
B18: =VLOOKUP(D18,Data,Ref_player1+1,FALSE) -> 16668 | C18: |||||||||||||||||||||||||||||||||||||||||||||||||||||||||||||||||||||||||||||||||||| | D18: Service Games Played | E18: ||||||||||||||| | F18: =VLOOKUP(D18,Data,Ref_Player2+1,FALSE) -> 3124
B19: =VLOOKUP(D19,Data,Ref_player1+1,FALSE) -> 0.89 | C19: |||||||||||||||||||||||||||||||||||||||||||||||||||| | D19: Service Games Won | E19: ||||||||||||||||||||||||||||||||||||||||||||||| | F19: =VLOOKUP(D19,Data,Ref_Player2+1,FALSE) -> 0.82
B20: =VLOOKUP(D20,Data,Ref_player1+1,FALSE) -> 0.69 | C20: ||||||||||||||||||||||||||||||||||||||||||||||||||| | D20: Total Service Points Won | E20: |||||||||||||||||||||||||||||||||||||||||||||||| | F20: =VLOOKUP(D20,Data,Ref_Player2+1,FALSE) -> 0.65

Sheet Data
A2: Service Record | B2: Djokovic | C2: Federer | D2: Murray | E2: Nadal | F2: Thiem
A3: Aces | B3: 4877 | C3: 10066 | D3: 5473 | E3: 2950 | F3: 1432
A4: Double Faults | B4: 2023 | C4: 2475 | D4: 2018 | E4: 1547 | F4: 691
A5: 1st Serve | B5: 0.65 | C5: 0.62 | D5: 0.58 | E5: 0.69 | F5: 0.59
A6: 1st Serve Points Won | B6: 0.73 | C6: 0.77 | D6: 0.75 | E6: 0.72 | F6: 0.74
A7: 2nd Serve Points Won | B7: 0.55 | C7: 0.57 | D7: 0.52 | E7: 0.57 | F7: 0.54
A8: Break Points Faced | B8: 4747 | C8: 5781 | D8: 4834 | E8: 5149 | F8: 1465
A9: Break Points Saved | B9: 0.65 | C9: 0.67 | D9: 0.63 | E9: 0.66 | F9: 0.62
A10: Service Games Played | B10: 11289 | C10: 16668 | D10: 10052 | E10: 11874 | F10: 3124
A11: Service Games Won | B11: 0.85 | C11: 0.89 | D11: 0.82 | E11: 0.85 | F11: 0.82
A12: Total Service Points Won | B12: 0.67 | C12: 0.69 | D12: 0.65 | E12: 0.67 | F12: 0.65
A13: Return Record
A14: 1st Serve Return Points Won | B14: 0.34 | C14: 0.33 | D14: 0.34 | E14: 0.34 | F14: 0.3
A15: 2nd Serve Return Points Won | B15: 0.55 | C15: 0.51 | D15: 0.55 | E15: 0.55 | F15: 0.5
A16: Break Points Opportunities | B16: 7943 | C16: 10624 | D16: 7308 | E16: 8769 | F16: 1917
A17: Break Points Converted | B17: 0.44 | C17: 0.41 | D17: 0.44 | E17: 0.45 | F17: 0.38
A18: Return Games Played | B18: 10975 | C18: 16286 | D18: 9958 | E18: 11827 | F18: 3142
A19: Return Games Won | B19: 0.32 | C19: 0.27 | D19: 0.32 | E19: 0.33 | F19: 0.23
A20: Return Points Won | B20: 0.42 | C20: 0.4 | D20: 0.42 | E20: 0.42 | F20: 0.37
A21: Total Points Won | B21: 0.54 | C21: 0.54 | D21: 0.53 | E21: 0.54 | F21: 0.51

Sheet Pics
J1: 2 | K1: 5
